fUSD/lending_fUSD_20241121
["ID","MTS","AMOUNT","RATE_DAILY","PERIOD"]
[342949521,1732217457809,-500.0,0.00040917,7]
[342949522,1732217457820,-161.735392,0.00040917,14]
[342949523,1732217457829,-161.735392,0.00040917,14]
[342949524,1732217457839,-333.39,0.00040917,14]
[342949525,1732217457849,-333.39,0.00040917,14]
[342949526,1732217457859,-208.901966,0.00040917,14]
[342949527,1732217457868,-151.0,0.00040917,14]
[342949528,1732217457877,-208.901966,0.00040917,14]
[342949529,1732217457886,-151.0,0.00040917,14]
[342949530,1732217457898,-151.0,0.00040917,14]
[342949531,1732217457908,-151.0,0.00040917,14]
[342949532,1732217457918,-151.0,0.00040917,14]
[342949533,1732217457929,-374.7389,0.00040917,14]
[342949534,1732217457938,-374.7389,0.00040917,14]
[342949535,1732217457948,-262.5162,0.00040917,14]
[342949536,1732217457959,-262.5162,0.00040917,14]
[342949537,1732217457970,-264.857564,0.00040917,14]
[342949538,1732217457979,-264.857564,0.00040917,14]
[342949539,1732217457988,-151.0,0.00040917,14]
[342949540,1732217457997,-224.244943,0.00040917,14]
[342949541,1732217458006,-224.244943,0.00040917,14]
[342949542,1732217458016,-151.0,0.00040917,14]
[342949543,1732217458026,-151.0,0.00040917,14]
[342949544,1732217458036,-151.0,0.00040917,14]
[342949545,1732217458046,-390.811008,0.00040917,14]
[342949546,1732217458057,-390.811008,0.00040917,14]
[342949547,1732217458066,-330.6625,0.00040917,14]
[342949548,1732217458075,-330.6625,0.00040917,14]
[342949549,1732217458084,-465.0803,0.00040917,14]
[342949550,1732217458093,-465.0803,0.00040917,14]
[342949551,1732217458103,-919.83258,0.00040917,14]
[342949552,1732217458112,-919.83258,0.00040917,14]
[342949553,1732217458121,-526.559534,0.00040917,14]
[342949554,1732217458130,-205.058868,0.00040917,14]
[342949555,1732217458139,-205.058868,0.00040917,14]
[342949556,1732217458151,-553.32888,0.00040917,14]
[342949557,1732217458160,-192.18045,0.00040917,14]
[342949558,1732217458169,-192.18045,0.00040917,14]
[342949559,1732217458179,-303.59069534,0.00040921,2]
[342949560,1732217458189,-551.50598883,0.00040931,2]
[342949561,1732217458201,-1708.3225925,0.00040931,2]
[342949562,1732217458210,-918.25754183,0.00040941,2]
[342949563,1732217458219,-1816.09960744,0.00040949,2]
[342949564,1732217458230,-242.6,0.00040952,2]
[342949565,1732217458239,-187.9,0.00040952,2]
[342949566,1732217458248,-1708.3225925,0.00040958,2]
[342949567,1732217458257,-299.673936,0.00040964,14]
[342949568,1732217458266,-299.673936,0.00040964,14]
[342949569,1732217458275,-1000.0,0.00040967,60]
[342949570,1732217458285,-1200.0,0.00040967,60]
[342949571,1732217458294,-511.92132,0.00040972,60]
[342949572,1732217458303,-1816.09960744,0.00040972,2]
[342949573,1732217458312,-200.0,0.00040975,2]
[342949574,1732217458321,-1816.09960744,0.00040978,2]
[342949575,1732217458330,-878.644322,0.00040981,2]
[342949576,1732217458339,-303.59069534,0.00040987,2]
[342949577,1732217458348,-303.59069534,0.00040991,2]
[342949578,1732217458357,-878.644322,0.00040992,2]
[342949579,1732217458366,-500.0,0.00040994,11]
[342949580,1732217458375,-500.0,0.00040994,11]
[342949581,1732217458390,-500.0,0.00040994,11]
[342949582,1732217458404,-500.0,0.00040994,11]
[342949583,1732217458413,-500.0,0.00040994,11]
[342949584,1732217458423,-685.18,0.00040994,11]
[342949585,1732217458432,-500.0,0.00040994,11]
[342949586,1732217458442,-500.0,0.00040994,11]
[342949587,1732217458451,-500.0,0.00040994,11]
[342949588,1732217458461,-3088.05,0.00040994,11]
[342949589,1732217458470,-620.25,0.00040994,11]
[342949590,1732217458479,-500.0,0.00040994,11]
[342949591,1732217458488,-500.0,0.00040994,11]
[342949592,1732217458497,-1081.59,0.00040994,11]
[342949593,1732217458507,-500.0,0.00040994,11]
[342949594,1732217458516,-500.0,0.00040994,11]
[342949595,1732217458526,-500.0,0.00040994,11]
[342949596,1732217458536,-500.0,0.00040994,11]
[342949597,1732217458545,-500.0,0.00040994,11]
[342949598,1732217458554,-548.38,0.00040994,11]
[342949599,1732217458564,-5924.49,0.00040994,2]
[342949600,1732217458574,-741.81,0.00040994,11]
[342949601,1732217458583,-608.57,0.00040994,11]
[342949602,1732217458592,-1091.24,0.00040994,11]
[342949603,1732217458602,-918.25754183,0.00040996,2]
[342949604,1732217458612,-933.779167,0.00041,45]
[342949605,1732217458622,-500.0,0.00041,2]
[342949606,1732217458632,-2021.0,0.00041,117]
[342949607,1732217458643,-182.36,0.00041002,2]
[342949608,1732217458653,-763.3,0.00041002,2]
[342949609,1732217458662,-839.61,0.00041074,120]
[342949610,1732217458672,-2000.0,0.00041082,7]
[342949611,1732217458681,-200.0,0.00041082,7]
[342949612,1732217458690,-200.0,0.00041082,7]
[342949613,1732217458711,-2000.0,0.00041082,7]
[342949614,1732217458730,-200.0,0.00041082,7]
[342949615,1732217458740,-182.10255,0.00041088,30]
[342949616,1732217458749,-300.21,0.0004109,120]
[342949617,1732217458759,-500.0,0.00041095,30]
[342949618,1732217458773,-151.0,0.00041095,14]
[342949619,1732217458783,-219.815437,0.00041095,14]
[342949620,1732217458792,-219.815437,0.00041095,14]
[342949621,1732217458802,-653.448917,0.00041095,14]
[342949622,1732217458813,-653.448917,0.00041095,14]
[342949623,1732217458823,-341.34543195,0.00041095,11]
[342949624,1732217458833,-151.0,0.00041095,14]
[342949625,1732217458843,-151.0,0.00041095,14]
[342949626,1732217458853,-500.0,0.00041095,11]
[342949627,1732217458863,-766.72,0.00041095,11]
[342949628,1732217458872,-151.0,0.00041095,14]
[342949629,1732217458885,-484.845,0.00041095,14]
[342949630,1732217458898,-484.845,0.00041095,14]
[342949631,1732217458908,-340.256701,0.00041095,14]
[342949632,1732217458917,-340.256701,0.00041095,14]
[342949633,1732217458927,-151.0,0.00041095,14]
[342949634,1732217458937,-151.0,0.00041095,14]
[342949635,1732217458947,-318.982561,0.00041095,14]
[342949636,1732217458958,-318.982561,0.00041095,14]
[342949637,1732217458968,-500.0,0.00041095,11]
[342949638,1732217458983,-581.503174,0.00041095,14]
[342949639,1732217458995,-581.503174,0.00041095,14]
[342949640,1732217459005,-500.0,0.00041095,11]
[342949641,1732217459015,-500.0,0.00041095,11]
[342949642,1732217459025,-151.0,0.00041095,14]
[342949643,1732217459035,-182.651729,0.00041095,14]
[342949644,1732217459044,-313.221751,0.00041095,14]
[342949645,1732217459054,-313.221751,0.00041095,14]
[342949646,1732217459064,-500.0,0.00041095,11]
[342949647,1732217459073,-1774.58,0.00041095,10]
[342949648,1732217459083,-500.0,0.00041095,11]
[342949649,1732217459092,-1500.0,0.00041095,120]
[342949650,1732217459102,-434.30289887,0.00041095,120]
[342949651,1732217459111,-500.0,0.00041095,11]
[342949652,1732217459121,-500.0,0.00041095,11]
[342949653,1732217459131,-500.0,0.00041095,11]
[342949654,1732217459140,-1061.2,0.00041095,11]
[342949655,1732217459152,-500.0,0.00041095,11]
[342949656,1732217459162,-500.0,0.00041095,11]
[342949657,1732217459171,-678.05,0.00041095,11]
[342949658,1732217459181,-518.39,0.00041095,11]
[342949659,1732217459191,-500.0,0.00041095,120]
[342949660,1732217459200,-500.0,0.00041095,120]
[342949661,1732217459211,-2438.63,0.00041095,11]
[342949662,1732217459221,-695.85,0.00041095,11]
[342949663,1732217459231,-1019.62,0.00041095,11]
[342949664,1732217459241,-500.0,0.00041095,11]
[342949665,1732217459251,-748.44,0.00041095,11]
[342949666,1732217459260,-500.0,0.00041095,11]
[342949667,1732217459270,-500.0,0.00041095,11]
[342949668,1732217459280,-500.0,0.00041095,11]
[342949669,1732217459290,-502.27,0.00041095,11]
[342949670,1732217459300,-151.0,0.00041095,14]
[342949671,1732217459309,-151.0,0.00041095,14]
[342949672,1732217459319,-505.55,0.00041095,11]
[342949673,1732217459329,-1116.54,0.00041095,11]
[342949674,1732217459339,-500.0,0.00041095,11]
[342949675,1732217459349,-500.0,0.00041095,11]
[342949676,1732217459358,-500.0,0.00041095,11]
[342949677,1732217459367,-629.31,0.00041095,60]
[342949678,1732217459377,-1170.921735,0.00041095,14]
[342949679,1732217459388,-639.79,0.00041095,11]
[342949680,1732217459401,-1170.921735,0.00041095,14]
[342949681,1732217459411,-1143.93,0.00041095,10]
[342949682,1732217459420,-500.0,0.00041095,11]
[342949683,1732217459430,-777.56,0.00041095,11]
[342949684,1732217459439,-214.527844,0.00041095,14]
[342949685,1732217459449,-214.527844,0.00041095,14]
[342949686,1732217459458,-6107.76,0.00041095,11]
[342949687,1732217459468,-1212.16,0.00041095,11]
[342949688,1732217459477,-500.0,0.00041095,11]
[342949689,1732217459487,-500.0,0.00041095,11]
[342949690,1732217459496,-365.67,0.00041096,2]
[342949691,1732217459506,-1000.0,0.00041096,13]
[342949692,1732217459515,-1000.0,0.00041096,13]
[342949693,1732217459525,-1000.0,0.00041096,13]
[342949694,1732217459534,-1000.0,0.00041096,13]
[342949695,1732217459544,-1000.0,0.00041096,13]
[342949696,1732217459554,-1000.0,0.00041096,13]
[342949697,1732217459563,-1000.0,0.00041096,13]
[342949698,1732217459572,-1000.0,0.00041096,13]
[342949699,1732217459581,-186.0,0.00041096,13]
[342949700,1732217459591,-151.0,0.00041096,14]
[342949701,1732217459600,-300.0,0.00041096,2]
[342949702,1732217459609,-198.65523508,0.000411,2]
[342949703,1732217459618,-604.01,0.00041102,2]
[342949704,1732217459627,-500.0,0.0004112,120]
[342949705,1732217459638,-1054.0,0.00041154,30]
[342949706,1732217459649,-1054.0,0.00041154,30]
[342949707,1732217459659,-1366.28045698,0.00041172,120]
[342949708,1732217459669,-1574.43205953,0.00041172,120]
[342949709,1732217459678,-152.0,0.00041173,3]
[342949710,1732217459688,-156.01117899,0.00041178,30]
[342949711,1732217459697,-150.0,0.00041179,2]
[342949712,1732217459706,-800.0,0.00041191,120]
[342949713,1732217459717,-201.0,0.000412,30]
[342949714,1732217459726,-204.0,0.000412,30]
[342949715,1732217459736,-274.0,0.000412,2]
[342949716,1732217459746,-182.16,0.000412,40]
[342949717,1732217459756,-1183.02197709,0.0004122,10]
[342949718,1732217459766,-2007.36045721,0.0004122,10]
[342949719,1732217459778,-955.8087,0.0004125,40]
[342949720,1732217459788,-2000.0,0.00041258,120]
[342949721,1732217459798,-151.0,0.00041258,14]
[342949722,1732217459808,-373.418927,0.00041258,14]
[342949723,1732217459819,-373.418927,0.00041258,14]
[342949724,1732217459829,-151.0,0.00041258,14]
[342949725,1732217459838,-382.551216,0.00041258,14]
[342949726,1732217459849,-151.0,0.00041258,14]
[342949727,1732217459859,-382.551216,0.00041258,14]
[342949728,1732217459868,-224.590002,0.00041258,14]
[342949729,1732217459878,-224.590002,0.00041258,14]
[342949730,1732217459888,-223.142127,0.00041258,14]
[342949731,1732217459901,-223.142127,0.00041258,14]
[342949732,1732217459911,-415.013785,0.00041258,14]
[342949733,1732217459921,-415.013785,0.00041258,14]
[342949734,1732217459930,-500.0,0.00041268,11]
[342949735,1732217459941,-500.0,0.00041268,11]
[342949736,1732217459951,-500.0,0.00041268,11]
[342949737,1732217459961,-500.0,0.00041268,11]
[342949738,1732217459972,-587.78709912,0.00041268,11]
[342949739,1732217459982,-685.18,0.00041268,11]
[342949740,1732217459991,-500.0,0.00041268,11]
[342949741,1732217460001,-588.22678954,0.00041268,11]
[342949742,1732217460011,-500.0,0.00041268,11]
[342949743,1732217460020,-3088.05,0.00041268,11]
[342949744,1732217460030,-620.25,0.00041268,11]
[342949745,1732217460041,-500.0,0.00041268,11]
[342949746,1732217460051,-500.0,0.00041268,11]
[342949747,1732217460061,-1081.59,0.00041268,11]
[342949748,1732217460071,-500.0,0.00041268,11]
[342949749,1732217460081,-500.0,0.00041268,11]
[342949750,1732217460091,-500.0,0.00041268,11]
[342949751,1732217460101,-500.0,0.00041268,11]
[342949752,1732217460111,-500.0,0.00041268,11]
[342949753,1732217460121,-548.38,0.00041268,11]
[342949754,1732217460130,-5924.49,0.00041268,2]
[342949755,1732217460142,-741.81,0.00041268,11]
[342949756,1732217460152,-608.57,0.00041268,11]
[342949757,1732217460161,-1091.24,0.00041268,11]
[342949758,1732217460171,-300.0,0.00041279,120]
[342949759,1732217460181,-95237.87691769,0.0004128,2]
[342949760,1732217460190,-151.0,0.0004128,14]
[342949761,1732217460200,-151.0,0.0004128,14]
[342949762,1732217460209,-151.0,0.0004128,14]
[342949763,1732217460219,-151.0,0.0004128,14]
[342949764,1732217460228,-151.0,0.0004128,14]
[342949765,1732217460237,-355.875565,0.0004128,14]
[342949766,1732217460247,-355.875565,0.0004128,14]
[342949767,1732217460256,-531.634416,0.0004128,14]
[342949768,1732217460265,-531.634416,0.0004128,14]
[342949769,1732217460275,-610.612746,0.0004128,14]
[342949770,1732217460284,-465.219636,0.0004128,14]
[342949771,1732217460294,-465.219636,0.0004128,14]
[342949772,1732217460303,-457.257012,0.0004128,14]
[342949773,1732217460313,-457.257012,0.0004128,14]
[342949774,1732217460322,-990.526881,0.0004128,14]
[342949775,1732217460332,-214.248085,0.0004128,14]
[342949776,1732217460341,-214.248085,0.0004128,14]
[342949777,1732217460351,-151.0,0.0004128,14]
[342949778,1732217460360,-417.95,0.0004128,7]
[342949779,1732217460370,-417.95,0.0004128,7]
[342949780,1732217460380,-151.0,0.0004128,14]
[342949781,1732217460390,-151.0,0.0004128,14]
[342949782,1732217460403,-151.0,0.0004128,14]
[342949783,1732217460413,-160.27137806,0.00041286,28]
[342949784,1732217460424,-182.10255,0.00041288,30]
[342949785,1732217460435,-1256.868843,0.00041289,14]
[342949786,1732217460445,-1256.868843,0.00041289,14]
[342949787,1732217460456,-7518.48369821,0.00041289,2]
[342949788,1732217460466,-150.5,0.0004129,120]
[342949789,1732217460475,-500.0,0.00041312,120]
[342949790,1732217460485,-161.735392,0.00041315,14]
[342949791,1732217460496,-161.735392,0.00041315,14]
[342949792,1732217460506,-333.39,0.00041315,14]
[342949793,1732217460516,-333.39,0.00041315,14]
[342949794,1732217460525,-2731.01,0.00041315,120]
[342949795,1732217460534,-500.0,0.00041344,120]
[342949796,1732217460544,-200.0,0.00041344,120]
[342949797,1732217460553,-621.762382,0.00041368,14]
[342949798,1732217460563,-151.0,0.00041368,14]
[342949799,1732217460572,-1029.183445,0.00041368,14]
[342949800,1732217460582,-621.762382,0.00041368,14]
[342949801,1732217460591,-900.0,0.00041368,14]
[342949802,1732217460601,-900.0,0.00041368,14]
[342949803,1732217460611,-151.0,0.00041368,14]
[342949804,1732217460620,-900.0,0.00041368,14]
[342949805,1732217460630,-900.0,0.00041368,14]
[342949806,1732217460639,-1029.183445,0.00041368,14]
[342949807,1732217460652,-900.0,0.00041368,14]
[342949808,1732217460661,-900.0,0.00041368,14]
[342949809,1732217460671,-900.0,0.00041368,14]
[342949810,1732217460680,-900.0,0.00041368,14]
[342949811,1732217460690,-900.0,0.00041368,14]
[342949812,1732217460700,-900.0,0.00041368,14]
[342949813,1732217460710,-1048.73136086,0.00041368,14]
[342949814,1732217460719,-167.282727,0.00041368,14]
[342949815,1732217460729,-167.282727,0.00041368,14]
[342949816,1732217460740,-151.0,0.00041368,14]
[342949817,1732217460910,-669.909396,0.00041368,14]
[342949818,1732217460920,-669.909396,0.00041368,14]
[342949819,1732217460930,-500.0,0.00041369,30]
[342949820,1732217460939,-299.673936,0.00041369,14]
[342949821,1732217460948,-299.673936,0.00041369,14]
[342949822,1732217460958,-208.901966,0.00041369,14]
[342949823,1732217460966,-151.0,0.00041369,14]
[342949824,1732217460976,-208.901966,0.00041369,14]
[342949825,1732217460985,-151.0,0.00041369,14]
[342949826,1732217460995,-151.0,0.00041369,14]
[342949827,1732217461004,-151.0,0.00041369,14]
[342949828,1732217461013,-151.0,0.00041369,14]
[342949829,1732217461022,-374.7389,0.00041369,14]
[342949830,1732217461031,-374.7389,0.00041369,14]
[342949831,1732217461041,-262.5162,0.00041369,14]
[342949832,1732217461051,-262.5162,0.00041369,14]
[342949833,1732217461060,-264.857564,0.00041369,14]
[342949834,1732217461069,-264.857564,0.00041369,14]
[342949835,1732217461079,-151.0,0.00041369,14]
[342949836,1732217461088,-224.244943,0.00041369,14]
[342949837,1732217461098,-224.244943,0.00041369,14]
[342949838,1732217461108,-151.0,0.00041369,14]
[342949839,1732217461118,-151.0,0.00041369,14]
[342949840,1732217461127,-151.0,0.00041369,14]
[342949841,1732217461136,-390.811008,0.00041369,14]
[342949842,1732217461149,-390.811008,0.00041369,14]
[342949843,1732217461166,-330.6625,0.00041369,14]
[342949844,1732217461175,-330.6625,0.00041369,14]
[342949845,1732217461184,-465.0803,0.00041369,14]
[342949846,1732217461194,-465.0803,0.00041369,14]
[342949847,1732217461203,-919.83258,0.00041369,14]
[342949848,1732217461213,-919.83258,0.00041369,14]
[342949849,1732217461223,-526.559534,0.00041369,14]
[342949850,1732217461232,-205.058868,0.00041369,14]
[342949851,1732217461241,-205.058868,0.00041369,14]
[342949852,1732217461250,-553.32888,0.00041369,14]
[342949853,1732217461260,-192.18045,0.00041369,14]
[342949854,1732217461269,-192.18045,0.00041369,14]
[342949855,1732217461278,-500.0,0.00041369,11]
[342949856,1732217461288,-766.72,0.00041369,11]
[342949857,1732217461297,-500.0,0.00041369,11]
[342949858,1732217461306,-500.0,0.00041369,11]
[342949859,1732217461315,-500.0,0.00041369,11]
[342949860,1732217461324,-151.0,0.00041369,14]
[342949861,1732217461333,-186.522252,0.00041369,14]
[342949862,1732217461342,-395.860156,0.00041369,14]
[342949863,1732217461351,-395.860156,0.00041369,14]
[342949864,1732217461361,-500.0,0.00041369,11]
[342949865,1732217461370,-532.540821,0.00041369,14]
[342949866,1732217461379,-522.73797,0.00041369,14]
[342949867,1732217461395,-522.73797,0.00041369,14]
[342949868,1732217461408,-532.540821,0.00041369,14]
[342949869,1732217461419,-151.0,0.00041369,14]
[342949870,1732217461429,-151.0,0.00041369,14]
[342949871,1732217461439,-151.0,0.00041369,14]
[342949872,1732217461447,-307.098401,0.00041369,14]
[342949873,1732217461457,-212.117254,0.00041369,7]
[342949874,1732217461466,-307.098401,0.00041369,14]
[342949875,1732217461476,-151.0,0.00041369,14]
[342949876,1732217461485,-151.0,0.00041369,14]
[342949877,1732217461494,-212.117254,0.00041369,7]
[342949878,1732217461503,-151.0,0.00041369,14]
[342949879,1732217461512,-151.0,0.00041369,14]
[342949880,1732217461521,-231.820189,0.00041369,14]
[342949881,1732217461530,-1774.58,0.00041369,10]
[342949882,1732217461540,-353.394556,0.00041369,14]
[342949883,1732217461549,-570.576073,0.00041369,14]
[342949884,1732217461558,-353.394556,0.00041369,14]
[342949885,1732217461567,-570.576073,0.00041369,14]
[342949886,1732217461576,-588.575198,0.00041369,14]
[342949887,1732217461585,-588.575198,0.00041369,14]
[342949888,1732217461595,-294.39612914,0.00041369,11]
[342949889,1732217461604,-250.69939152,0.00041369,11]
[342949890,1732217461613,-500.0,0.00041369,11]
[342949891,1732217461622,-500.0,0.00041369,11]
[342949892,1732217461632,-1061.2,0.00041369,11]
[342949893,1732217461641,-500.0,0.00041369,11]
[342949894,1732217461652,-500.0,0.00041369,11]
[342949895,1732217461662,-678.05,0.00041369,11]
[342949896,1732217461672,-518.39,0.00041369,11]
[342949897,1732217461681,-2438.63,0.00041369,11]
[342949898,1732217461690,-695.85,0.00041369,11]
[342949899,1732217461699,-1019.62,0.00041369,11]
[342949900,1732217461709,-500.0,0.00041369,11]
[342949901,1732217461718,-748.44,0.00041369,11]
[342949902,1732217461727,-500.0,0.00041369,11]
[342949903,1732217461736,-500.0,0.00041369,11]
[342949904,1732217461746,-500.0,0.00041369,11]
[342949905,1732217461755,-502.27,0.00041369,11]
[342949906,1732217461765,-505.55,0.00041369,11]
[342949907,1732217461776,-1116.54,0.00041369,11]
[342949908,1732217461785,-500.0,0.00041369,11]
[342949909,1732217461796,-500.0,0.00041369,11]
[342949910,1732217461805,-500.0,0.00041369,11]
[342949911,1732217461815,-639.79,0.00041369,11]
[342949912,1732217461825,-1143.93,0.00041369,10]
[342949913,1732217461834,-500.0,0.00041369,11]
[342949914,1732217461846,-777.56,0.00041369,11]
[342949915,1732217461856,-6107.76,0.00041369,11]
[342949916,1732217461867,-1212.16,0.00041369,11]
[342949917,1732217461876,-500.0,0.00041369,11]
[342949918,1732217461886,-500.0,0.00041369,11]
[342949919,1732217461898,-969.18,0.00041407,30]
[342949920,1732217461908,-969.18,0.00041407,30]
[342949921,1732217461917,-969.18,0.00041407,30]
[342949922,1732217461927,-969.18,0.00041407,30]
[342949923,1732217461936,-969.18,0.00041407,30]
[342949924,1732217461945,-969.18,0.00041407,30]
[342949925,1732217461954,-969.18,0.00041407,30]
[342949926,1732217461964,-969.18,0.00041407,30]
[342949927,1732217461973,-1219.32,0.00041407,30]
[342949928,1732217461983,-969.18,0.00041407,30]
[342949929,1732217461992,-969.18,0.00041407,30]
[342949930,1732217462002,-968.27,0.00041413,30]
[342949931,1732217462011,-969.18,0.00041413,30]
[342949932,1732217462020,-969.18,0.00041413,30]
[342949933,1732217462030,-969.18,0.00041413,30]
[342949934,1732217462039,-969.18,0.00041413,30]
[342949935,1732217462049,-2110.0,0.00041417,30]
[342949936,1732217462058,-156.01117899,0.00041425,30]
[342949937,1732217462067,-182.10255,0.00041488,30]
[342949938,1732217462076,-2000.0,0.00041493,7]
[342949939,1732217462085,-200.0,0.00041493,7]
[342949940,1732217462094,-200.0,0.00041493,7]
[342949941,1732217462103,-2000.0,0.00041493,7]
[342949942,1732217462112,-200.0,0.00041493,7]
[342949943,1732217462121,-1000.0,0.00041495,2]
[342949944,1732217462131,-1200.0,0.00041515,60]
[342949945,1732217462140,-500.0,0.00041515,60]
[342949946,1732217462152,-1074.29283341,0.0004152,10]
[342949947,1732217462161,-500.0,0.00041542,11]
[342949948,1732217462170,-500.0,0.00041542,11]
[342949949,1732217462179,-500.0,0.00041542,11]
[342949950,1732217462188,-500.0,0.00041542,11]
[342949951,1732217462197,-685.18,0.00041542,11]
[342949952,1732217462207,-500.0,0.00041542,11]
[342949953,1732217462216,-561.57887428,0.00041542,11]
[342949954,1732217462226,-3088.05,0.00041542,11]
[342949955,1732217462235,-620.25,0.00041542,11]
[342949956,1732217462245,-500.0,0.00041542,11]
[342949957,1732217462254,-500.0,0.00041542,11]
[342949958,1732217462263,-1081.59,0.00041542,11]
[342949959,1732217462272,-337.41800436,0.00041542,11]
[342949960,1732217462282,-500.0,0.00041542,11]
[342949961,1732217462292,-571.00588161,0.00041542,11]
[342949962,1732217462301,-500.0,0.00041542,11]
[342949963,1732217462310,-500.0,0.00041542,11]
[342949964,1732217462319,-548.38,0.00041542,11]
[342949965,1732217462328,-5924.49,0.00041542,2]
[342949966,1732217462339,-741.81,0.00041542,11]
[342949967,1732217462348,-608.57,0.00041542,11]
[342949968,1732217462357,-1091.24,0.00041542,11]
[342949969,1732217462367,-2324.39490441,0.00041553,15]
[342949970,1732217462376,-286.03,0.00041604,120]
[342949971,1732217462385,-500.0,0.00041643,30]
[342949972,1732217462396,-151.0,0.00041643,14]
[342949973,1732217462405,-219.815437,0.00041643,14]
[342949974,1732217462414,-219.815437,0.00041643,14]
[342949975,1732217462423,-151.0,0.00041643,14]
[342949976,1732217462433,-151.0,0.00041643,14]
[342949977,1732217462444,-584.228945,0.00041643,14]
[342949978,1732217462454,-151.0,0.00041643,14]
[342949979,1732217462463,-584.228945,0.00041643,14]
[342949980,1732217462472,-754.734951,0.00041643,14]
[342949981,1732217462481,-754.734951,0.00041643,14]
[342949982,1732217462490,-151.0,0.00041643,14]
[342949983,1732217462500,-531.392661,0.00041643,14]
[342949984,1732217462509,-270.327852,0.00041643,14]
[342949985,1732217462518,-531.392661,0.00041643,14]
[342949986,1732217462527,-257.046829,0.00041643,14]
[342949987,1732217462535,-257.046829,0.00041643,14]
[342949988,1732217462544,-151.0,0.00041643,14]
[342949989,1732217462553,-257.777623,0.00041643,14]
[342949990,1732217462563,-257.777623,0.00041643,14]
[342949991,1732217462572,-500.0,0.00041643,11]
[342949992,1732217462581,-766.72,0.00041643,11]
[342949993,1732217462590,-500.0,0.00041643,11]
[342949994,1732217462599,-522.28625537,0.00041643,11]
[342949995,1732217462608,-500.0,0.00041643,11]
[342949996,1732217462617,-500.0,0.00041643,11]
[342949997,1732217462627,-1774.58,0.00041643,10]
[342949998,1732217462636,-500.0,0.00041643,11]
[342949999,1732217462646,-500.0,0.00041643,11]
[342950000,1732217462655,-1061.2,0.00041643,11]
[342950001,1732217462664,-500.0,0.00041643,11]
[342950002,1732217462674,-500.0,0.00041643,11]
[342950003,1732217462683,-678.05,0.00041643,11]
[342950004,1732217462692,-518.39,0.00041643,11]
[342950005,1732217462702,-2438.63,0.00041643,11]
[342950006,1732217462711,-695.85,0.00041643,11]
[342950007,1732217462720,-1019.62,0.00041643,11]
[342950008,1732217462730,-500.0,0.00041643,11]
[342950009,1732217462739,-748.44,0.00041643,11]
[342950010,1732217462749,-500.0,0.00041643,11]
[342950011,1732217462759,-500.0,0.00041643,11]
[342950012,1732217462770,-500.0,0.00041643,11]
[342950013,1732217462782,-502.27,0.00041643,11]
[342950014,1732217462792,-505.55,0.00041643,11]
[342950015,1732217462801,-1116.54,0.00041643,11]
[342950016,1732217462811,-500.0,0.00041643,11]
[342950017,1732217462821,-500.0,0.00041643,11]
[342950018,1732217462830,-500.0,0.00041643,11]
[342950019,1732217462839,-639.79,0.00041643,11]
[342950020,1732217462849,-1143.93,0.00041643,10]